bitfinex-derivatives/quotes_SOLF0:USTF0_20250705
["timestamp","ask_amount","ask_price","bid_price","bid_amount"]
[1751745394238,13.13831719,146.84,146.83,248.3488]
[1751745397736,4.61747664,146.84,146.83,251.36831924]
[1751745397940,12.56948807,146.88,146.84,6.8083]
[1751745398142,20.56996344,146.87,146.85,195.32]
[1751745398341,20.56996344,146.86,146.85,195.32]
[1751745400042,15.963122,146.86,146.85,195.32]
[1751745400242,20.57035017,146.86,146.85,195.32]
[1751745403044,20.57112689,146.86,146.85,195.32]
[1751745403840,23.59064613,146.86,146.85,195.32]
[1751745405945,18.56965128,146.86,146.85,195.32]
[1751745406148,23.59260202,146.86,146.85,195.32]
[1751745406945,23.58474492,146.86,146.85,195.32]
[1751745408542,30.39224492,146.86,146.85,195.32]
[1751745411546,39.9488058,146.86,146.83,53.0088]
[1751745411847,19.38358012,146.86,146.85,195.3]
[1751745412043,39.93805206,146.86,146.85,195.3]
[1751745412747,30.38149118,146.86,146.85,195.3]
[1751745413352,39.93805206,146.86,146.85,195.3]
[1751745415147,33.13055206,146.86,146.81,6.8098]
[1751745415346,3.01951924,146.83,146.81,6.8098]
[1751745415547,3.01951924,146.83,146.82,195.3]
[1751745415746,20.55614997,146.83,146.82,195.3]
[1751745415949,18.13531361,146.83,146.82,202.1094]
[1751745420659,18.13365124,146.83,146.82,202.1094]
[1751745423761,18.13365124,146.83,146.82,195.3]
[1751745425756,19.93587488,146.83,146.82,195.3]
[1751745425959,24.929099,146.83,146.82,195.3]
[1751745431966,27.94861824,146.83,146.82,195.3]
[1751745432169,27.94861824,146.83,146.78,46.18]
[1751745432170,23.55602461,146.83,146.78,49.19951924]
[1751745432370,3.01951924,146.81,146.78,241.48]
[1751745432569,9.82981924,146.81,146.78,248.291]
[1751745432867,3.01951924,146.8,146.78,52.991]
[1751745433066,3.01951924,146.8,146.78,248.291]
[1751745433466,9.82991924,146.8,146.78,248.291]
[1751745436473,6.8104,146.8,146.78,248.291]
[1751745436673,6.8104,146.8,146.79,195.3]
[1751745437171,6.8104,146.8,146.78,52.991]
[1751745437374,9.82961924,146.81,146.79,195.32]
[1751745437977,6.8103,146.8,146.79,195.32]
[1751745438277,30.22867769,146.8,146.78,46.18]
[1751745438472,16.04184974,146.79,146.78,241.5]
[1751745438675,22.85264974,146.79,146.78,241.5]
[1751745439179,22.85138672,146.79,146.78,241.5]
[1751745439381,22.85138672,146.79,146.78,46.18]
[1751745439882,22.85138672,146.79,146.78,241.48]
[1751745440278,18.2938591,146.79,146.78,241.48]
[1751745440579,18.2938591,146.79,146.78,241.5]
[1751745440777,8.46353986,146.79,146.78,241.5]
[1751745440979,3.01951924,146.85,146.78,244.51951924]
[1751745441181,3.01951924,146.85,146.81,3.01951924]
[1751745441481,3.01951924,146.85,146.82,202.129]
[1751745441675,9.82741924,146.86,146.82,195.32]
[1751745441876,9.46833275,146.85,146.84,9.82801924]
[1751745442180,9.82651924,146.88,146.84,205.14801924]
[1751745442481,11.83052235,146.87,146.84,205.14801924]
[1751745442675,9.82651924,146.88,146.84,205.14801924]
[1751745442872,4.51684732,146.87,146.84,205.14801924]
[1751745443077,9.82651924,146.88,146.84,205.14801924]
[1751745443276,4.51684732,146.87,146.84,205.14801924]
[1751745443478,9.82651924,146.88,146.84,205.14801924]
[1751745443682,4.51668062,146.87,146.84,205.14801924]
[1751745443982,9.82651924,146.88,146.84,205.14801924]
[1751745444182,4.51682448,146.87,146.84,205.14801924]
[1751745444383,6.8071,146.87,146.84,205.14801924]
[1751745445283,6.8071,146.87,146.84,202.1285]
[1751745446483,3.01951924,146.88,146.84,202.1285]
[1751745446484,9.82631924,146.88,146.85,6.808]
[1751745446686,11.83766851,146.87,146.85,6.808]
[1751745446980,9.82631924,146.88,146.85,6.808]
[1751745447284,11.85184363,146.87,146.85,6.808]
[1751745447484,9.82631924,146.88,146.85,6.808]
[1751745447781,11.85153743,146.87,146.85,6.808]
[1751745447986,9.82631924,146.88,146.85,6.808]
[1751745448187,11.85153743,146.87,146.85,6.808]
[1751745448391,9.82631924,146.88,146.85,6.808]
[1751745448682,11.95118761,146.87,146.85,6.808]
[1751745448891,9.82631924,146.88,146.85,6.808]
[1751745449082,12.03797053,146.87,146.85,6.808]
[1751745449283,9.82631924,146.88,146.85,6.808]
[1751745449482,4.60247496,146.87,146.85,6.808]
[1751745449686,9.82631924,146.88,146.85,6.808]
[1751745449888,9.82631924,146.88,146.84,205.14781924]
[1751745451085,4.60175292,146.87,146.84,205.14781924]
[1751745451278,9.82631924,146.88,146.84,205.14781924]
[1751745451486,4.60155553,146.87,146.84,205.14781924]
[1751745451788,9.82631924,146.88,146.84,205.14781924]
[1751745451989,4.60155553,146.87,146.84,205.14781924]
[1751745452191,9.82631924,146.88,146.84,205.14781924]
[1751745452390,4.60122528,146.87,146.84,205.14781924]
[1751745452688,9.82631924,146.88,146.85,6.8079]
[1751745452897,13.02860135,146.87,146.85,6.8079]
[1751745453195,9.82631924,146.88,146.85,6.8079]
[1751745453395,13.02828231,146.87,146.85,6.8079]
[1751745453592,9.82631924,146.88,146.85,6.8079]
[1751745453897,13.02769912,146.87,146.85,6.8079]
[1751745454198,9.82631924,146.88,146.85,6.8079]
[1751745454393,13.02733797,146.87,146.85,6.8079]
[1751745454592,9.82631924,146.88,146.85,6.8079]
[1751745454897,13.03751128,146.87,146.85,6.8079]
[1751745455095,9.82631924,146.88,146.85,6.8079]
[1751745455295,13.03751149,146.87,146.85,6.8079]
[1751745455594,9.82631924,146.88,146.85,6.8079]
[1751745455795,13.03653439,146.87,146.85,6.8079]
[1751745455995,9.82631924,146.88,146.85,6.8079]
[1751745456195,4.61103651,146.87,146.85,6.8079]
[1751745456396,9.82631924,146.88,146.85,6.8079]
[1751745458196,3.01951924,146.87,146.85,6.8079]
[1751745465904,9.82631924,146.88,146.85,6.8079]
[1751745467605,6.8072,146.87,146.85,6.8079]
[1751745468405,9.82671924,146.87,146.85,6.8079]
[1751745471903,3.01951924,146.87,146.85,6.8079]
[1751745475718,6.8068,146.88,146.85,6.8079]
[1751745476016,3.01951924,146.87,146.85,6.8079]
[1751745477521,9.82661924,146.87,146.85,6.8079]
[1751745482820,6.8071,146.87,146.85,6.8079]
[1751745483024,9.82661924,146.87,146.85,6.8079]
[1751745483225,4.61984478,146.86,146.85,6.8079]
[1751745483727,3.01951924,146.87,146.85,6.8079]
[1751745484322,13.07070471,146.86,146.85,6.8079]
[1751745484522,8.44701403,146.86,146.85,6.8079]
[1751745484728,13.07070471,146.86,146.85,6.8079]
[1751745485328,20.54525749,146.86,146.85,6.8079]
[1751745486124,20.54525749,146.86,146.84,202.1283]
[1751745486334,23.56715646,146.85,146.84,195.32]
[1751745487332,20.54763722,146.85,146.84,202.1285]
[1751745490438,15.92394654,146.85,146.84,202.1285]
[1751745490739,20.55561804,146.85,146.84,202.1285]
[1751745491541,18.12009397,146.85,146.84,202.1285]
[1751745493337,20.55401175,146.85,146.84,195.32]
[1751745495344,20.55401175,146.85,146.83,6.8088]
[1751745495544,18.12009397,146.84,146.83,6.8088]
[1751745495744,18.12009397,146.84,146.83,201.9888]
[1751745496144,13.07900079,146.84,146.83,201.9888]
[1751745497643,13.07900079,146.84,146.83,205.00831924]
[1751745499547,4.63198676,146.84,146.83,205.00831924]
[1751745499748,6.8073,146.87,146.84,6.8082]
[1751745499948,23.5295088,146.86,146.84,6.8082]
[1751745500149,18.09032938,146.85,146.84,6.8082]
[1751745505549,13.04130603,146.85,146.84,6.8082]
[1751745505853,18.05856272,146.85,146.84,6.8082]
[1751745508649,13.45993281,146.85,146.84,6.8082]
[1751745508850,18.06945344,146.85,146.84,6.8082]
[1751745511150,20.48926782,146.85,146.84,6.8082]
[1751745512051,18.06945344,146.85,146.84,6.8082]
[1751745512350,20.48929061,146.85,146.84,6.8082]
[1751745512750,18.06945344,146.85,146.84,6.8082]
[1751745512952,20.48930377,146.85,146.84,6.8082]
[1751745514551,20.48930377,146.85,146.84,201.9682]
[1751745517554,20.50226026,146.85,146.84,201.9682]
[1751745526463,20.50298035,146.85,146.84,201.9682]
[1751745527164,12.06030423,146.85,146.84,201.9682]
[1751745527354,20.40373128,146.85,146.84,201.9682]
[1751745530466,30.23207536,146.85,146.84,195.16]
[1751745530865,30.23260014,146.85,146.83,6.8089]
[1751745531067,9.82886886,146.85,146.84,195.12]
[1751745531267,20.39597166,146.85,146.84,195.12]
[1751745532070,20.39597166,146.85,146.84,201.9285]
[1751745533869,20.39597166,146.85,146.84,6.8085]
[1751745534168,20.39597166,146.85,146.84,201.9285]
[1751745535366,20.39597166,146.85,146.84,195.12]
[1751745541673,20.39710579,146.85,146.84,195.12]
[1751745546876,27.20510579,146.85,146.84,195.12]
[1751745547175,30.22597465,146.85,146.84,195.12]
[1751745551379,27.20510579,146.85,146.84,195.12]
[1751745552379,20.39710579,146.85,146.84,195.12]
[1751745553784,20.39710579,146.85,146.84,201.9285]
[1751745556286,20.39710579,146.85,146.84,195.12]
[1751745557789,8.34564656,146.85,146.84,195.12]
[1751745557983,20.39428931,146.85,146.84,195.12]
[1751745558185,20.39430129,146.85,146.84,195.12]
[1751745559084,12.04865473,146.85,146.84,195.12]
[1751745559291,20.43694597,146.85,146.84,195.12]
[1751745561085,15.43023798,146.85,146.84,195.12]
[1751745561294,20.4496383,146.85,146.84,195.12]
[1751745561691,20.4496383,146.85,146.84,201.9285]
[1751745564695,8.38829124,146.85,146.84,201.9285]
[1751745564894,20.45635474,146.85,146.84,201.9285]
[1751745565090,18.03530416,146.85,146.84,201.9285]
[1751745565895,18.03462125,146.85,146.84,201.9285]
[1751745566200,13.01234139,146.85,146.84,201.9285]
[1751745569198,4.62405015,146.85,146.84,201.9285]
[1751745576205,4.63191548,146.85,146.84,201.9285]
[1751745576406,3.02033178,146.86,146.84,201.9285]
[1751745577408,6.8071,146.87,146.84,201.9285]
[1751745577608,21.08273885,146.86,146.84,201.9285]
[1751745577809,3.02033178,146.86,146.84,201.9285]
[1751745584413,9.82803178,146.86,146.84,201.9285]
[1751745584912,18.09979303,146.85,146.84,201.9285]
[1751745588117,8.43831699,146.85,146.84,201.9285]
[1751745588415,18.10032976,146.85,146.84,201.9285]
[1751745588617,13.46885058,146.85,146.84,201.9285]
[1751745589018,18.10042563,146.85,146.84,201.9285]
[1751745590819,18.10042563,146.85,146.84,195.12]
[1751745593022,18.10042563,146.85,146.84,195.0]
[1751745597018,18.10042563,146.85,146.84,201.8085]
[1751745597723,18.10042563,146.85,146.84,195.0]
[1751745599627,24.90882563,146.85,146.84,195.0]
[1751745599826,30.34396833,146.85,146.84,195.0]
[1751745600027,30.3442486,146.85,146.84,195.0]
[1751745600426,6.8088,146.84,146.82,46.18]
[1751745600628,13.06989204,146.83,146.82,46.18]
[1751745600822,13.06989204,146.83,146.82,241.18]
[1751745601330,18.08747354,146.83,146.82,241.18]
[1751745602427,21.10827875,146.83,146.82,46.18]
[1751745602627,27.91717875,146.83,146.82,241.18]
[1751745603225,27.91492641,146.83,146.82,241.18]
[1751745605236,21.10602641,146.83,146.82,241.18]
[1751745605937,4.63157505,146.83,146.82,251.01020521]
[1751745606637,3.02080521,146.86,146.82,251.01020521]
[1751745606939,16.04569431,146.85,146.82,244.20080521]
[1751745607142,3.02080521,146.83,146.82,241.18]
[1751745607532,3.02080521,146.83,146.81,6.8098]
[1751745607533,11.43675086,146.83,146.81,6.8098]
[1751745607732,3.02080521,146.83,146.82,195.0]
[1751745607933,11.43710119,146.83,146.82,195.0]
[1751745608132,21.02436057,146.83,146.82,195.0]
[1751745609339,18.00355536,146.83,146.82,195.0]
[1751745609741,18.00355536,146.83,146.81,6.8098]
[1751745609940,9.82950521,146.84,146.82,195.0]
[1751745610239,17.99776717,146.83,146.82,195.0]
[1751745612841,13.01111639,146.83,146.82,195.0]
[1751745615138,27.8247981,146.83,146.82,195.0]
[1751745615534,27.8247981,146.83,146.8,6.8101]
[1751745615535,27.8247981,146.83,146.81,195.0]
[1751745615741,11.43440923,146.82,146.81,195.0]
[1751745616244,16.02981143,146.82,146.8,6.81]
[1751745616441,3.02080521,146.82,146.81,195.0]
[1751745616635,16.01425367,146.82,146.81,195.0]
[1751745618046,7.61558938,146.82,146.81,195.0]
[1751745619443,6.8089,146.83,146.81,195.0]
[1751745619635,3.02080521,146.82,146.81,195.0]
[1751745620035,3.02080521,146.82,146.81,201.8099]
[1751745620234,7.60307742,146.82,146.81,201.8099]
[1751745621140,3.02080521,146.82,146.81,201.8099]
[1751745621339,7.60289578,146.82,146.81,201.8099]
[1751745621539,3.02080521,146.83,146.81,201.8099]
[1751745624247,9.82970521,146.83,146.81,201.8099]
[1751745624547,9.82970521,146.83,146.81,195.0]
[1751745625545,12.9602675,146.82,146.81,195.0]
[1751745626849,9.83020521,146.82,146.81,195.0]
[1751745627052,15.98131558,146.82,146.79,46.08]
[1751745627250,3.02080521,146.8,146.79,46.08]
[1751745627550,9.83110521,146.8,146.79,241.08]
[1751745628550,9.83110521,146.8,146.79,46.08]
[1751745628746,9.83110521,146.8,146.79,241.08]
[1751745628955,9.83110521,146.8,146.79,46.08]
[1751745629153,9.83110521,146.8,146.79,241.1]
[1751745629757,3.02080521,146.8,146.75,46.08]
[1751745629956,3.02080521,146.78,146.76,195.02]
[1751745630254,3.02080521,146.78,146.77,195.02]
[1751745630455,3.02080521,146.78,146.76,6.8119]
[1751745630758,3.02080521,146.78,146.77,195.02]
[1751745631853,3.02080521,146.78,146.76,6.8119]
[1751745632151,3.02080521,146.78,146.77,195.02]
[1751745632354,9.83210521,146.78,146.75,6.8125]
[1751745632554,9.83210521,146.78,146.76,195.02]
[1751745633551,3.02080521,146.77,146.76,195.02]
[1751745634755,6.8113,146.78,146.76,195.02]
[1751745634950,9.83210521,146.78,146.76,195.02]
[1751745635455,9.83210521,146.78,146.77,195.04]
[1751745635849,3.02080521,146.78,146.76,6.8121]
[1751745636046,3.02080521,146.78,146.77,195.02]
[1751745638561,9.83210521,146.78,146.76,6.8121]
[1751745638857,9.83210521,146.78,146.77,195.04]
[1751745640257,3.02080521,146.78,146.76,6.8121]
[1751745640560,3.02080521,146.78,146.76,201.8521]
[1751745641357,9.83220521,146.78,146.76,201.8521]
[1751745644261,4.6636,146.83,146.77,3.02080521]
[1751745644461,3.02080521,146.8,146.77,3.02080521]
[1751745644956,9.83120521,146.8,146.77,9.83240521]
[1751745645156,9.83120521,146.8,146.77,6.8116]
[1751745645550,9.83120521,146.8,146.78,6.8113]
[1751745649458,9.83120521,146.8,146.77,6.8115]
[1751745649763,6.8104,146.8,146.77,6.8115]
[1751745649962,9.83120521,146.8,146.77,6.8115]
[1751745650463,4.6636,146.83,146.78,3.02080521]
[1751745650464,3.02080521,146.82,146.78,3.02080521]
[1751745650664,20.16236607,146.81,146.78,3.02080521]
[1751745650864,3.02080521,146.82,146.78,3.02080521]
[1751745651063,26.97256607,146.81,146.78,9.83190521]
[1751745651358,6.8102,146.81,146.78,6.8111]
[1751745651763,9.83100521,146.81,146.78,6.8111]
[1751745652161,4.52073507,146.8,146.78,6.8111]
[1751745652367,9.83100521,146.81,146.78,6.8111]
[1751745652568,4.52077714,146.8,146.78,6.8111]
[1751745652866,9.83100521,146.81,146.78,6.8111]
[1751745653066,4.53163822,146.8,146.78,6.8111]
[1751745653266,9.83100521,146.81,146.78,6.8111]
[1751745653470,4.53177022,146.8,146.78,6.8111]
[1751745653667,9.83100521,146.81,146.78,6.8111]
[1751745653863,4.53267518,146.8,146.78,6.8111]
[1751745654063,9.83100521,146.81,146.78,6.8111]
[1751745654267,4.5328393,146.8,146.78,6.8111]
[1751745654468,9.83100521,146.81,146.78,6.8111]
[1751745654668,4.5328393,146.8,146.78,6.8111]
[1751745654870,9.83100521,146.81,146.78,6.8111]
[1751745655068,4.5328393,146.8,146.78,6.8111]
[1751745655369,9.83100521,146.81,146.78,6.8111]
[1751745655562,4.53303665,146.8,146.78,6.8111]
[1751745655762,9.83100521,146.81,146.78,6.8111]
[1751745655968,4.53303665,146.8,146.78,6.8111]
[1751745656163,9.83100521,146.81,146.78,6.8111]
[1751745656469,4.53326873,146.8,146.78,6.8111]
[1751745656769,9.83100521,146.81,146.78,6.8111]
[1751745657068,4.53326873,146.8,146.78,6.8111]
[1751745657268,9.83100521,146.81,146.78,6.8111]
[1751745657569,4.53353736,146.8,146.78,6.8111]
[1751745657866,9.83100521,146.81,146.78,6.8111]
[1751745658063,4.53353736,146.8,146.78,6.8111]
[1751745658267,9.83100521,146.81,146.78,6.8111]
[1751745658469,4.53395805,146.8,146.78,6.8111]
[1751745658768,9.83100521,146.81,146.78,6.8111]
[1751745658972,4.54482104,146.8,146.78,6.8111]
[1751745659170,9.83100521,146.81,146.78,6.8111]
[1751745659469,4.54529925,146.8,146.78,6.8111]
[1751745659667,9.83100521,146.81,146.78,6.8111]
[1751745659867,4.54529925,146.8,146.78,6.8111]
[1751745660066,9.83100521,146.81,146.78,6.8111]
[1751745660267,9.47216896,146.8,146.78,6.8111]
[1751745660465,3.02080521,146.81,146.77,3.02080521]
[1751745660769,9.47216896,146.8,146.79,3.02080521]
[1751745660959,3.02080521,146.84,146.79,3.02080521]
[1751745661162,3.02080521,146.84,146.8,198.04080521]
[1751745661163,20.23879714,146.83,146.8,198.04080521]
[1751745661363,9.82950521,146.84,146.8,198.04080521]
[1751745661664,20.23775296,146.83,146.8,198.04080521]
[1751745661970,4.54452615,146.82,146.81,6.8099]
[1751745666276,3.02080521,146.86,146.83,6.8085]
[1751745666482,20.2436346,146.85,146.83,6.8085]
[1751745666675,20.2436346,146.84,146.83,6.8085]
[1751745667676,20.2436346,146.84,146.82,9.82990521]
[1751745667974,4.5437973,146.83,146.82,6.8091]
[1751745668469,3.02080521,146.85,146.82,6.8091]
[1751745669577,9.82890521,146.85,146.82,6.8091]
[1751745670271,3.02080521,146.83,146.8,6.8101]
[1751745670478,3.02080521,146.83,146.81,194.98]
[1751745670877,9.83010521,146.83,146.81,194.98]
[1751745671478,9.83010521,146.83,146.8,6.8101]
[1751745672877,9.82950521,146.84,146.81,6.8098]
[1751745673076,4.57355017,146.83,146.82,3.02080521]
[1751745673776,4.57355017,146.83,146.82,9.83020521]
[1751745675180,9.82850521,146.86,146.82,9.83020521]
[1751745675380,11.94373128,146.85,146.82,9.83020521]
[1751745675681,11.94373128,146.84,146.82,9.83020521]
[1751745675881,9.82850521,146.86,146.82,9.83020521]
[1751745676178,4.57195625,146.85,146.82,9.83020521]
[1751745676372,9.82850521,146.86,146.82,9.83020521]
[1751745676574,4.57105651,146.85,146.82,9.83020521]
[1751745676774,9.82850521,146.86,146.82,9.83020521]
[1751745677079,4.57105651,146.85,146.82,9.83020521]
[1751745677279,9.82850521,146.86,146.82,9.83020521]
[1751745677481,6.8081,146.85,146.82,9.83020521]
[1751745677680,6.8081,146.85,146.82,3.02080521]
[1751745678379,9.82890521,146.85,146.82,3.02080521]
[1751745678983,6.8081,146.85,146.82,9.83010521]
[1751745679284,9.82890521,146.85,146.82,9.83010521]
[1751745679985,6.8086,146.84,146.81,9.83040521]
[1751745683587,6.8086,146.84,146.81,6.8096]
[1751745683777,6.8086,146.84,146.81,9.83040521]
[1751745689289,9.82900521,146.85,146.82,6.8094]
[1751745691795,6.8087,146.84,146.81,204.77050521]
[1751745693599,6.8087,146.84,146.82,6.8094]
[1751745694998,9.82900521,146.85,146.82,6.8094]
[1751745695191,4.58888466,146.84,146.82,6.8094]
[1751745695393,9.82900521,146.85,146.82,6.8094]
[1751745695592,4.58948524,146.84,146.82,6.8094]
[1751745695792,9.82900521,146.85,146.82,6.8094]
[1751745695996,4.58948524,146.84,146.82,6.8094]
[1751745696196,9.82900521,146.85,146.82,6.8094]
[1751745696399,13.0073107,146.84,146.82,6.8094]
[1751745696593,6.8085,146.84,146.82,6.8094]
[1751745697003,6.8085,146.84,146.81,204.77050521]
[1751745697403,6.8091,146.83,146.81,204.77050521]
[1751745699605,6.8091,146.83,146.81,201.7497]
[1751745700502,6.8083,146.85,146.82,3.02080521]
[1751745700804,17.99301573,146.84,146.82,3.02080521]
[1751745701109,6.8083,146.85,146.82,9.82990521]
[1751745701310,17.99516348,146.84,146.82,9.82955267]
[1751745701608,6.8083,146.85,146.82,9.82955267]
[1751745701804,17.99715819,146.84,146.82,9.82955267]
[1751745702007,6.8083,146.85,146.82,9.82955267]
[1751745702308,17.99715819,146.84,146.82,9.82955267]
[1751745702509,9.82835267,146.86,146.82,9.82955267]
[1751745702708,20.40895766,146.85,146.82,9.82955267]
[1751745702910,18.00198772,146.84,146.82,9.82955267]
[1751745703110,4.5966184,146.83,146.82,9.82955267]
[1751745703511,13.02715529,146.83,146.82,9.82955267]
[1751745705215,4.5966184,146.83,146.82,9.82955267]
[1751745705713,4.5966184,146.83,146.82,6.8091]
[1751745705916,4.5966184,146.83,146.82,9.82955267]
[1751745707415,13.02051695,146.83,146.82,9.82955267]
[1751745707617,13.02051695,146.83,146.82,9.82961419]
[1751745710515,4.5966184,146.83,146.82,9.82961419]
[1751745712421,13.0243348,146.83,146.82,9.82961419]
[1751745712916,4.5966184,146.83,146.82,9.82961419]
[1751745713218,3.02051419,146.88,146.83,6.8087]
[1751745713421,6.8076,146.86,146.83,9.82921419]
[1751745713620,8.42728871,146.85,146.83,9.82921419]
[1751745713822,6.8076,146.86,146.83,9.82921419]
[1751745714722,6.8076,146.86,146.84,3.02051419]
[1751745716128,6.8073,146.87,146.84,9.82901419]
[1751745716424,8.42165383,146.86,146.83,46.04]
[1751745716624,16.54807753,146.9,146.85,3.02051419]
[1751745716925,20.39350184,146.89,146.87,3.02051419]
[1751745717119,2.2985,146.9,146.87,3.02051419]
[1751745717325,6.8053,146.91,146.88,9.82711419]
[1751745717525,18.00368699,146.9,146.88,9.82711419]
[1751745717727,8.44164334,146.89,146.88,6.8066]
[1751745717921,8.44164334,146.89,146.88,9.82711419]
[1751745718118,8.44164334,146.89,146.86,194.9]
[1751745718323,6.8057,146.9,146.88,3.02051419]
[1751745718522,3.02051419,146.92,146.88,3.02051419]
[1751745718724,20.39829686,146.91,146.88,9.82701419]
[1751745719025,17.99525205,146.9,146.88,9.82701419]
[1751745719227,3.02051419,146.92,146.88,9.82701419]
[1751745719427,20.39064957,146.91,146.88,9.82701419]
[1751745719726,13.02127734,146.9,146.88,9.82701419]
[1751745719926,6.8054,146.91,146.88,9.82701419]
[1751745720127,13.02063925,146.9,146.88,9.82701419]
[1751745720327,6.8054,146.91,146.88,9.82701419]
[1751745720528,3.02051419,146.89,146.83,46.04]
[1751745720731,3.02051419,146.86,146.83,46.04]
[1751745720932,16.04600607,146.85,146.83,247.7289]
[1751745721131,3.02051419,146.85,146.83,240.92]
[1751745721532,9.82851419,146.85,146.83,240.92]
[1751745721834,6.808,146.85,146.83,240.92]
[1751745722330,13.02594859,146.84,146.79,130.21999731]
[1751745722530,4.72031719,146.85,146.8,194.94]
[1751745722735,13.02633555,146.84,146.79,130.21999731]
[1751745723033,4.72031719,146.85,146.8,194.94]
[1751745723229,13.02633062,146.84,146.8,194.94]
[1751745723431,6.8087,146.84,146.81,6.8099]
[1751745725333,6.8087,146.84,146.81,201.7499]
[1751745725934,6.809,146.83,146.81,194.94]
[1751745731337,6.809,146.83,146.8,6.8101]
[1751745731526,6.809,146.83,146.81,194.94]
[1751745733133,6.809,146.83,146.8,6.8101]
[1751745733330,6.809,146.83,146.81,194.96]
[1751745733831,4.72031719,146.85,146.79,130.21999731]
[1751745734037,4.72031719,146.83,146.79,46.04]
[1751745734237,4.72031719,146.81,146.78,194.96]
[1751745734438,6.8103,146.8,146.77,6.8114]
[1751745734737,6.8103,146.8,146.78,194.94]
[1751745736339,6.8103,146.8,146.77,6.8114]
[1751745736640,6.8103,146.8,146.78,194.94]
[1751745736834,6.8103,146.8,146.77,6.8114]
[1751745737035,6.8103,146.8,146.78,194.94]
[1751745737237,6.8103,146.8,146.77,6.8114]
[1751745737542,6.8103,146.8,146.78,194.94]
[1751745738238,6.8109,146.79,146.78,194.94]
[1751745740745,6.8109,146.79,146.76,6.812]
[1751745741047,6.8109,146.79,146.77,194.94]
[1751745743142,6.8115,146.78,146.75,52.8725]
[1751745743342,6.8115,146.78,146.76,194.96]
[1751745744145,6.8115,146.78,146.77,194.96]
[1751745744545,4.72031719,146.79,146.75,46.06]
[1751745744744,4.72031719,146.79,146.76,194.98]
[1751745745259,6.8122,146.76,146.73,6.8134]
[1751745745464,6.8122,146.76,146.74,194.98]
[1751745747557,6.8122,146.76,146.71,50.78031719]
[1751745747558,4.72031719,146.77,146.71,46.06]
[1751745747764,4.72031719,146.77,146.72,195.02]
[1751745748168,6.8132,146.74,146.71,52.8742]
[1751745748356,6.8132,146.74,146.72,195.08]
[1751745748763,6.8136,146.73,146.71,46.06]
[1751745749061,6.8136,146.73,146.71,241.14]
[1751745749268,6.814,146.72,146.67,46.08]
[1751745749465,6.814,146.72,146.68,195.12]
[1751745749967,6.814,146.72,146.69,6.8152]
[1751745750967,6.814,146.72,146.7,6.8149]
[1751745751268,11.53411719,146.73,146.7,6.8149]
[1751745752670,6.8138,146.73,146.7,6.8149]
[1751745753064,6.8138,146.73,146.7,201.9949]
[1751745753268,6.8141,146.72,146.7,195.18]
[1751745755563,6.8137,146.73,146.7,201.9949]
[1751745756470,6.8137,146.73,146.7,6.8149]
[1751745757873,4.6812,146.76,146.69,195.18]
[1751745758069,53.10071719,146.78,146.7,4.72031719]
[1751745758269,53.10071719,146.78,146.71,46.08]
[1751745758568,6.8124,146.76,146.73,6.8133]
[1751745761668,6.8127,146.75,146.72,6.8138]
[1751745763468,6.8131,146.74,146.72,6.8138]
[1751745764570,6.8131,146.74,146.71,52.8942]
[1751745764773,6.8137,146.73,146.71,46.08]
[1751745766676,6.8137,146.73,146.71,52.8945]
[1751745766972,6.8133,146.74,146.71,46.08]
[1751745767473,6.8133,146.74,146.71,241.32]
[1751745768565,6.8133,146.74,146.71,248.1344]
[1751745772777,6.8133,146.74,146.72,6.814]
[1751745773877,6.8129,146.75,146.72,6.814]
[1751745774280,6.8131,146.74,146.72,6.814]
[1751745775176,6.8131,146.74,146.71,248.1343]
[1751745782084,6.8131,146.74,146.72,6.814]
[1751745786187,6.8131,146.74,146.71,248.1343]
[1751745791397,6.8131,146.74,146.72,6.814]
[1751745791593,6.8131,146.74,146.73,195.08]
[1751745792496,6.8129,146.75,146.73,195.08]
[1751745794106,8.29540609,146.74,146.73,195.08]
[1751745794802,6.8129,146.75,146.73,195.08]